Workbook

Sheet 1
A1: 2017-09-01 | B1: Недостача+/ Экономия- | H1: Остатки | I1: Коэф. | K1: Приход | M1: Расход | O1: Расход сторон | P1: Расход продажа | S1: Остатки
A2: Цемент 400 | B2: 0 | H2: 0 | M2: 0 | S2: =H2+K2-M2-O2-P2 -> 0
A3: Цемент 500 | B3: 0 | H3: 0 | M3: 0 | S3: =H3+K3-M3-O3-P3 -> 0
A4: Цемент | B4: 0 | H4: 83.78 | M4: =K50 -> 0 | S4: 83.78
A5: Песок | B5: 0 | H5: 1213.1738 | M5: =M50 -> 0 | S5: 1213.1738
A6: Гранит | B6: 0 | H6: 506.4745 | M6: =O50 -> 0 | S6: 506.4745
A7: Гравий | B7: 0 | H7: 912.149 | M7: =Q50 -> 0 | S7: 912.149
A8: ПГП | B8: 0 | H8: 0 | M8: =S50 -> 0 | S8: 0
A9: СП-3 | B9: 0 | H9: -13.593204 | M9: =U50 -> 0 | S9: =H9+K9-M9-O9-P9 -> -13.593204
A10: Криопласт ЭКСТРА | B10: 0 | H10: -1.217955 | L10: , | M10: =V51 -> 0 | S10: =H10+K10-M10-O10-P10 -> -1.217955
A11: Наименование продукции | B11: кол-во выпущено | E11: ПМД | J11: цемент | L11: песок | N11: гранит | P11: гравий | R11: ПГП | T11: СП-3 | V11: -5 | X11: -10 | Z11: -15 | AB11: -20 | AD11: -25
B13: Гранит | C13: Гравий | D13: ПГП | E13: -5 | F13: -10 | G13: -15 | H13: -20 | I13: -25 | J13: норма | K13: кол-во | L13: норма | M13: кол-во | N13: норма | O13: кол-во | P13: норма | Q13: кол-во | R13: норма | S13: кол-во | T13: норма | U13: кол-во | V13: норма | W13: кол-во | X13: норма | Y13: кол-во | Z13: норма | AA13: кол-во | AB13: норма | AC13: кол-во | AD13: норма | AE13: кол-во
B14: куб.м | C14: куб.м | D14: куб.м | E14: куб.м | F14: куб.м | G14: куб.м | H14: куб.м | I14: куб.м | J14: кг | K14: тн | L14: кг | M14: тн | N14: кг | O14: тн | P14: кг | Q14: тн | R14: кг | S14: тн | T14: кг | U14: тн | V14: кг | W14: тн | X14: кг | Y14: тн | Z14: кг | AA14: тн | AB14: кг | AC14: тн | AD14: кг | AE14: тн
A15: БСТ В3,5 F50 W4 П4 | J15: 120 | K15: =(B15+C15+D15)*J15/1000 -> 0 | L15: 1055 | M15: =(B15+C15+D15)*L15/1000 -> 0 | N15: 900 | O15: =B15*N15/1000 -> 0 | P15: 900 | Q15: =C15*P15/1000 -> 0 | R15: 900 | S15: =D15*R15/1000 -> 0 | T15: =J15*1.34/100 -> 1.608 | U15: =(B15+C15+D15-E15-F15-I15-G15-H15)*T15/1000 -> 0 | V15: =J15*1.1/100 -> 1.32 | W15: =E15*V15/1000 -> 0 | X15: =J15*1.3/100 -> 1.56 | Y15: =F15*X15/1000 -> 0 | Z15: =J15*1.5/100 -> 1.8 | AA15: =G15*Z15/1000 -> 0 | AB15: =J15*1.6/100 -> 1.92 | AC15: =H15*AB15/1000 -> 0 | AD15: =J15*1.7/100 -> 2.04 | AE15: =I15*AD15/1000 -> 0
A16: БСТ В7,5 (М100) П3 | J16: 165 | K16: =(B16+C16+D16)*J16/1000 -> 0 | L16: 1000 | M16: 0 | N16: 945 | O16: 0 | P16: 945 | Q16: 0 | R16: 945 | S16: 0 | T16: =J16*1.34/100 -> 2.211 | U16: =(B16+C16+D16-E16-F16-I16-G16-H16)*T16/1000 -> 0 | V16: =J16*1.1/100 -> 1.815 | W16: =E16*V16/1000 -> 0 | X16: =J16*1.3/100 -> 2.145 | Y16: =F16*X16/1000 -> 0 | Z16: =J16*1.5/100 -> 2.475 | AA16: =G16*Z16/1000 -> 0 | AB16: =J16*1.6/100 -> 2.64 | AC16: =H16*AB16/1000 -> 0 | AD16: =J16*1.7/100 -> 2.805 | AE16: =I16*AD16/1000 -> 0
A17: БСТ В7,5 (М100) П4 | J17: 175 | K17: 0 | L17: 1035 | M17: 0 | N17: 900 | O17: 0 | P17: 900 | Q17: 0 | R17: 900 | S17: 0 | T17: 2.345 | U17: 0 | V17: 1.925 | W17: 0 | X17: 2.275 | Y17: 0 | Z17: 2.625 | AA17: 0 | AB17: 2.8 | AC17: 0 | AD17: 2.975 | AE17: 0
A18: БСТ В7,5 (М100) Ж4 | J18: 125 | K18: 0 | L18: 855 | M18: 0 | N18: 1100 | O18: 0 | P18: 1100 | Q18: 0 | R18: 1100 | S18: 0 | T18: 1.675 | U18: 0 | V18: 1.375 | W18: 0 | X18: 1.625 | Y18: 0 | Z18: 1.875 | AA18: 0 | AB18: 2 | AC18: 0 | AD18: 2.125 | AE18: 0
A19: БСТ В12,5 (М150) П3 | J19: 200 | K19: 0 | L19: 970 | M19: 0 | N19: 960 | O19: 0 | P19: 960 | Q19: 0 | R19: 960 | S19: 0 | T19: 2.68 | U19: 0 | V19: 2.2 | W19: 0 | X19: 2.6 | Y19: 0 | Z19: 3 | AA19: 0 | AB19: 3.2 | AC19: 0 | AD19: 3.4 | AE19: 0
A20: БСТ В12,5 (М150) П4 | J20: 210 | K20: 0 | L20: 1000 | M20: 0 | N20: 920 | O20: 0 | P20: 920 | Q20: 0 | R20: 920 | S20: 0 | T20: 2.814 | U20: 0 | V20: 2.31 | W20: 0 | X20: 2.73 | Y20: 0 | Z20: 3.15 | AA20: 0 | AB20: 3.36 | AC20: 0 | AD20: 3.57 | AE20: 0
A21: БСТ В12,5 (М150) Ж4 | J21: 155 | K21: 0 | L21: 840 | M21: 0 | N21: 1100 | O21: 0 | P21: 1100 | Q21: 0 | R21: 1100 | S21: 0 | T21: 2.077 | U21: 0 | V21: 1.705 | W21: 0 | X21: 2.015 | Y21: 0 | Z21: 2.325 | AA21: 0 | AB21: 2.48 | AC21: 0 | AD21: 2.635 | AE21: 0
A22: БСТ В15 (М200) П3 | J22: 230 | K22: 0 | L22: 950 | M22: 0 | N22: 970 | O22: 0 | P22: 970 | Q22: 0 | R22: 970 | S22: 0 | T22: 3.082 | U22: 0 | V22: 2.53 | W22: 0 | X22: 2.99 | Y22: 0 | Z22: 3.45 | AA22: 0 | AB22: 3.68 | AC22: 0 | AD22: 3.91 | AE22: 0
A23: БСТ В15 (М200) П4 | J23: 240 | K23: 0 | L23: 970 | M23: 0 | N23: 930 | O23: 0 | P23: 930 | Q23: 0 | R23: 930 | S23: 0 | T23: 3.216 | U23: 0 | V23: 2.64 | W23: 0 | X23: 3.12 | Y23: 0 | Z23: 3.6 | AA23: 0 | AB23: 3.84 | AC23: 0 | AD23: 4.08 | AE23: 0
A24: БСТ В15 (М200) Ж4 | J24: 185 | K24: 0 | L24: 850 | M24: 0 | N24: 1100 | O24: 0 | P24: 1100 | Q24: 0 | R24: 1100 | S24: 0 | T24: 2.479 | U24: 0 | V24: 2.035 | W24: 0 | X24: 2.405 | Y24: 0 | Z24: 2.775 | AA24: 0 | AB24: 2.96 | AC24: 0 | AD24: 3.145 | AE24: 0
A25: БСТ В20 (М250) П3 | J25: 250 | K25: 0 | L25: 910 | M25: 0 | N25: 975 | O25: 0 | P25: 975 | Q25: 0 | R25: 975 | S25: 0 | T25: 3.35 | U25: 0 | V25: 2.75 | W25: 0 | X25: 3.25 | Y25: 0 | Z25: 3.75 | AA25: 0 | AB25: 4 | AC25: 0 | AD25: 4.25 | AE25: 0
A26: БСТ В20 (М250) П4 | J26: 270 | K26: 0 | L26: 930 | M26: 0 | N26: 935 | O26: 0 | P26: 935 | Q26: 0 | R26: 935 | S26: 0 | T26: 3.618 | U26: 0 | V26: 2.97 | W26: 0 | X26: 3.51 | Y26: 0 | Z26: 4.05 | AA26: 0 | AB26: 4.32 | AC26: 0 | AD26: 4.59 | AE26: 0
A27: БСТ В20 (М250) Ж4 | J27: 200 | K27: 0 | L27: 910 | M27: 0 | N27: 915 | O27: 0 | P27: 915 | Q27: 0 | R27: 915 | S27: 0 | T27: 2.68 | U27: 0 | V27: 2.2 | W27: 0 | X27: 2.6 | Y27: 0 | Z27: 3 | AA27: 0 | AB27: 3.2 | AC27: 0 | AD27: 3.4 | AE27: 0
A28: БСТ В22,5 (М300) П3 | J28: 280 | K28: 0 | L28: 895 | M28: 0 | N28: 980 | O28: 0 | P28: 980 | Q28: 0 | R28: 980 | S28: 0 | T28: 3.752 | U28: 0 | V28: 3.08 | W28: 0 | X28: 3.64 | Y28: 0 | Z28: 4.2 | AA28: 0 | AB28: 4.48 | AC28: 0 | AD28: 4.76 | AE28: 0
A29: БСТ В22,5 (М300) П4 | J29: 290 | K29: 0 | L29: 910 | M29: 0 | N29: 940 | O29: 0 | P29: 940 | Q29: 0 | R29: 940 | S29: 0 | T29: 3.886 | U29: 0 | V29: 3.19 | W29: 0 | X29: 3.77 | Y29: 0 | Z29: 4.35 | AA29: 0 | AB29: 4.64 | AC29: 0 | AD29: 4.93 | AE29: 0
A30: БСТ В25 (М350) П3 | J30: 305 | K30: 0 | L30: 890 | M30: 0 | N30: 995 | O30: 0 | P30: 995 | Q30: 0 | R30: 995 | S30: 0 | T30: 4.087 | U30: 0 | V30: 3.355 | W30: 0 | X30: 3.965 | Y30: 0 | Z30: 4.575 | AA30: 0 | AB30: 4.88 | AC30: 0 | AD30: 5.185 | AE30: 0
A31: БСТ В25 (М350) П4 | J31: 310 | K31: 0 | L31: 915 | M31: 0 | N31: 950 | O31: 0 | P31: 950 | Q31: 0 | R31: 950 | S31: 0 | T31: 4.154 | U31: 0 | V31: 3.41 | W31: 0 | X31: 4.03 | Y31: 0 | Z31: 4.65 | AA31: 0 | AB31: 4.96 | AC31: 0 | AD31: 5.27 | AE31: 0
A32: БСТ В30 (М400) П3 | J32: 350 | K32: 0 | L32: 855 | M32: 0 | N32: 1005 | O32: 0 | P32: 1005 | Q32: 0 | R32: 1005 | S32: 0 | T32: 4.69 | U32: 0 | V32: 3.85 | W32: 0 | X32: 4.55 | Y32: 0 | Z32: 5.25 | AA32: 0 | AB32: 5.6 | AC32: 0 | AD32: 5.95 | AE32: 0
A33: БСТ В30 (М400) П4 | J33: 360 | K33: 0 | L33: 880 | M33: 0 | N33: 960 | O33: 0 | P33: 960 | Q33: 0 | R33: 960 | S33: 0 | T33: 4.824 | U33: 0 | V33: 3.96 | W33: 0 | X33: 4.68 | Y33: 0 | Z33: 5.4 | AA33: 0 | AB33: 5.76 | AC33: 0 | AD33: 6.12 | AE33: 0
A34: БСТ В35 (М450) П3 | J34: 397 | K34: 0 | L34: 790 | M34: 0 | N34: 1020 | O34: 0 | P34: 1020 | Q34: 0 | R34: 1020 | S34: 0 | T34: 5.3198 | U34: 0 | V34: 4.367 | W34: 0 | X34: 5.161 | Y34: 0 | Z34: 5.955 | AA34: 0 | AB34: 6.352 | AC34: 0 | AD34: 6.749 | AE34: 0
A35: БСТ В35 (М450) П4 | J35: 413 | K35: 0 | L35: 810 | M35: 0 | N35: 970 | O35: 0 | P35: 970 | Q35: 0 | R35: 970 | S35: 0 | T35: 5.5342 | U35: 0 | V35: 4.543 | W35: 0 | X35: 5.369 | Y35: 0 | Z35: 6.195 | AA35: 0 | AB35: 6.608 | AC35: 0 | AD35: 7.021 | AE35: 0
A36: БСТ В40 (М500) П3 | J36: 440 | K36: 0 | L36: 735 | M36: 0 | N36: 1040 | O36: 0 | P36: 1040 | Q36: 0 | R36: 1040 | S36: 0 | T36: 5.896 | U36: 0 | V36: 4.84 | W36: 0 | X36: 5.72 | Y36: 0 | Z36: 6.6 | AA36: 0 | AB36: 7.04 | AC36: 0 | AD36: 7.48 | AE36: 0
A37: БСТ В40 (М500) П4 | J37: 460 | K37: 0 | L37: 755 | M37: 0 | N37: 985 | O37: 0 | P37: 985 | Q37: 0 | R37: 985 | S37: 0 | T37: 6.164 | U37: 0 | V37: 5.06 | W37: 0 | X37: 5.98 | Y37: 0 | Z37: 6.9 | AA37: 0 | AB37: 7.36 | AC37: 0 | AD37: 7.82 | AE37: 0
A38: БСТ В45 (М550) П3 | J38: 480 | K38: 0 | L38: 765 | M38: 0 | N38: 1060 | O38: 0 | P38: 1060 | Q38: 0 | R38: 1060 | S38: 0 | T38: 6.432 | U38: 0 | V38: 5.28 | W38: 0 | X38: 6.24 | Y38: 0 | Z38: 7.2 | AA38: 0 | AB38: 7.68 | AC38: 0 | AD38: 8.16 | AE38: 0
A39: БСТ В45 (М550) П4 | J39: 500 | K39: 0 | L39: 795 | M39: 0 | N39: 1010 | O39: 0 | P39: 1010 | Q39: 0 | R39: 1010 | S39: 0 | T39: 6.7 | U39: 0 | V39: 5.5 | W39: 0 | X39: 6.5 | Y39: 0 | Z39: 7.5 | AA39: 0 | AB39: 8 | AC39: 0 | AD39: 8.5 | AE39: 0
A40: Раствор М 50/Пк 1-4 | J40: 185 | K40: 0 | L40: 1675 | M40: 0 | O40: 0 | Q40: 0 | S40: 0 | T40: 2.479 | U40: 0 | V40: 2.035 | W40: 0 | X40: 2.405 | Y40: 0 | Z40: 2.775 | AA40: 0 | AB40: 2.96 | AC40: 0 | AD40: 3.145 | AE40: 0
A41: Раствор М100/Пк 1-4 | J41: 240 | K41: 0 | L41: 1650 | M41: 0 | O41: 0 | Q41: 0 | S41: 0 | T41: 3.216 | U41: 0 | V41: 2.64 | W41: 0 | X41: 3.12 | Y41: 0 | Z41: 3.6 | AA41: 0 | AB41: 3.84 | AC41: 0 | AD41: 4.08 | AE41: 0
A42: Раствор М150/Пк 1-4 | J42: 290 | K42: 0 | L42: 1620 | M42: 0 | O42: 0 | Q42: 0 | S42: 0 | T42: 3.886 | U42: 0 | V42: 3.19 | W42: 0 | X42: 3.77 | Y42: 0 | Z42: 4.35 | AA42: 0 | AB42: 4.64 | AC42: 0 | AD42: 4.93 | AE42: 0
A43: Раствор М200/Пк 1-4 | J43: 320 | K43: 0 | L43: 1590 | M43: 0 | O43: 0 | Q43: 0 | S43: 0 | T43: 4.288 | U43: 0 | V43: 3.52 | W43: 0 | X43: 4.16 | Y43: 0 | Z43: 4.8 | AA43: 0 | AB43: 5.12 | AC43: 0 | AD43: 5.44 | AE43: 0
A44: ПБСТ В12,5 (М150) П4 | J44: 290 | K44: 0 | L44: 1620 | M44: 0 | O44: 0 | Q44: 0 | S44: 0 | T44: 3.886 | U44: 0 | V44: 3.19 | W44: 0 | X44: 3.77 | Y44: 0 | Z44: 4.35 | AA44: 0 | AB44: 4.64 | AC44: 0 | AD44: 4.93 | AE44: 0
A45: ПБСТ В15 (М200) П4 | J45: 320 | K45: 0 | L45: 1590 | M45: 0 | O45: 0 | Q45: 0 | S45: 0 | T45: 4.288 | U45: 0 | V45: 3.52 | W45: 0 | X45: 4.16 | Y45: 0 | Z45: 4.8 | AA45: 0 | AB45: 5.12 | AC45: 0 | AD45: 5.44 | AE45: 0
A46: ПБСТ В20 (М250) П4 | J46: 380 | K46: 0 | L46: 1560 | M46: 0 | O46: 0 | Q46: 0 | S46: 0 | T46: 5.092 | U46: 0 | V46: 4.18 | W46: 0 | X46: 4.94 | Y46: 0 | Z46: 5.7 | AA46: 0 | AB46: 6.08 | AC46: 0 | AD46: 6.46 | AE46: 0
A47: ПБСТ В22,5 (М300) П4 | J47: 415 | K47: =(B47+C47+D47)*J47/1000 -> 0 | L47: 1550 | M47: =(B47+C47+D47)*L47/1000 -> 0 | O47: =B47*N47/1000 -> 0 | Q47: =C47*P47/1000 -> 0 | S47: =D47*R47/1000 -> 0 | T47: 5.561 | U47: 0 | V47: 4.565 | W47: 0 | X47: 5.395 | Y47: 0 | Z47: 6.225 | AA47: 0 | AB47: 6.64 | AC47: 0 | AD47: 7.055 | AE47: 0
A48: ПБСТ В25 (М350) П4 | J48: 440 | K48: 0 | L48: 1540 | M48: 0 | O48: 0 | Q48: 0 | S48: 0 | T48: 5.896 | U48: 0 | V48: 4.84 | W48: 0 | X48: 5.72 | Y48: 0 | Z48: 6.6 | AA48: 0 | AB48: 7.04 | AC48: 0 | AD48: 7.48 | AE48: 0
A49: Пусковая смесь | J49: 400 | K49: 0 | L49: 500 | M49: 0 | O49: 0 | Q49: 0 | S49: 0 | U49: 0
A50: Итого: | B50: =SUM(B15:B49) -> 0 | C50: =SUM(C15:C49) -> 0 | D50: 0 | E50: 0 | F50: 0 | G50: 0 | H50: 0 | I50: 0 | K50: =SUM(K15:K49) -> 0 | M50: =SUM(M15:M49) -> 0 | O50: =SUM(O15:O49) -> 0 | Q50: =SUM(Q15:Q49) -> 0 | S50: =SUM(S15:S49) -> 0 | U50: =SUM(U15:U49) -> 0 | W50: =SUM(W15:W49) -> 0 | Y50: =SUM(Y15:Y49) -> 0 | AA50: =SUM(AA15:AA49) -> 0 | AC50: =SUM(AC15:AC49) -> 0 | AE50: =SUM(AE15:AE49) -> 0
B51: =B50+C50+D50 -> 0 | E51: =E50+F50+I50 -> 0 | V51: =W50+Y50+AA50+AC50+AE50 -> 0

Sheet 2
A1: 2017-09-01 | B1: Недостача+/ Экономия- | H1: Остатки | I1: Коэф. | K1: Приход | M1: Расход | O1: Расход сторон | P1: Расход продажа | S1: Остатки
A2: Цемент 400 | B2: 0 | H2: ='1'!S2 -> 0 | M2: 0 | S2: =H2+K2-M2-O2-P2 -> 0
A3: Цемент 500 | B3: 0 | H3: ='1'!S3 -> 0 | M3: 0 | S3: 0
A4: Цемент | B4: 0 | H4: ='1'!S4 -> 83.78 | M4: =K50 -> 0 | S4: 83.78
A5: Песок | B5: 0 | H5: ='1'!S5 -> 1213.1738 | M5: =M50 -> 0 | S5: 1213.1738
A6: Гранит | B6: 0 | H6: ='1'!S6 -> 506.4745 | M6: =O50 -> 0 | S6: 506.4745
A7: Гравий | B7: 0 | H7: ='1'!S7 -> 912.149 | M7: =Q50 -> 0 | S7: 912.149
A8: ПГП | B8: 0 | H8: ='1'!S8 -> 0 | M8: =S50 -> 0 | S8: 0
A9: СП-3 | B9: 0 | H9: ='1'!S9 -> -13.593204 | M9: =U50 -> 0 | S9: =H9+K9-M9-O9-P9 -> -13.593204
A10: Криопласт ЭКСТРА | B10: 0 | H10: ='1'!S10 -> -1.217955 | L10: , | M10: =V51 -> 0 | S10: =H10+K10-M10-O10-P10 -> -1.217955
A11: Наименование продукции | B11: кол-во выпущено | E11: ПМД | J11: цемент | L11: песок | N11: гранит | P11: гравий | R11: ПГП | T11: СП-3 | V11: -5 | X11: -10 | Z11: -15 | AB11: -20 | AD11: -25
B13: Гранит | C13: Гравий | D13: ПГП | E13: -5 | F13: -10 | G13: -15 | H13: -20 | I13: -25 | J13: норма | K13: кол-во | L13: норма | M13: кол-во | N13: норма | O13: кол-во | P13: норма | Q13: кол-во | R13: норма | S13: кол-во | T13: норма | U13: кол-во | V13: норма | W13: кол-во | X13: норма | Y13: кол-во | Z13: норма | AA13: кол-во | AB13: норма | AC13: кол-во | AD13: норма | AE13: кол-во
B14: куб.м | C14: куб.м | D14: куб.м | E14: куб.м | F14: куб.м | G14: куб.м | H14: куб.м | I14: куб.м | J14: кг | K14: тн | L14: кг | M14: тн | N14: кг | O14: тн | P14: кг | Q14: тн | R14: кг | S14: тн | T14: кг | U14: тн | V14: кг | W14: тн | X14: кг | Y14: тн | Z14: кг | AA14: тн | AB14: кг | AC14: тн | AD14: кг | AE14: тн
A15: БСТ В3,5 F50 W4 П4 | J15: ='1'!J15 -> 120 | K15: =(B15+C15+D15)*J15/1000 -> 0 | L15: ='1'!L15 -> 1055 | M15: =(B15+C15+D15)*L15/1000 -> 0 | N15: ='1'!N15 -> 900 | O15: =B15*N15/1000 -> 0 | P15: ='1'!P15 -> 900 | Q15: =C15*P15/1000 -> 0 | R15: ='1'!R15 -> 900 | S15: =D15*R15/1000 -> 0 | T15: =J15*1.34/100 -> 1.608 | U15: =(B15+C15+D15-E15-F15-I15-G15-H15)*T15/1000 -> 0 | V15: =J15*1.1/100 -> 1.32 | W15: =E15*V15/1000 -> 0 | X15: =J15*1.3/100 -> 1.56 | Y15: =F15*X15/1000 -> 0 | Z15: =J15*1.5/100 -> 1.8 | AA15: =G15*Z15/1000 -> 0 | AB15: =J15*1.6/100 -> 1.92 | AC15: =H15*AB15/1000 -> 0 | AD15: =J15*1.7/100 -> 2.04 | AE15: =I15*AD15/1000 -> 0
A16: БСТ В7,5 (М100) П3 | J16: ='1'!J16 -> 165 | K16: =(B16+C16+D16)*J16/1000 -> 0 | L16: ='1'!L16 -> 1000 | M16: 0 | N16: ='1'!N16 -> 945 | O16: 0 | P16: ='1'!P16 -> 945 | Q16: 0 | R16: ='1'!R16 -> 945 | S16: 0 | T16: =J16*1.34/100 -> 2.211 | U16: =(B16+C16+D16-E16-F16-I16-G16-H16)*T16/1000 -> 0 | V16: =J16*1.1/100 -> 1.815 | W16: =E16*V16/1000 -> 0 | X16: =J16*1.3/100 -> 2.145 | Y16: =F16*X16/1000 -> 0 | Z16: =J16*1.5/100 -> 2.475 | AA16: =G16*Z16/1000 -> 0 | AB16: =J16*1.6/100 -> 2.64 | AC16: =H16*AB16/1000 -> 0 | AD16: =J16*1.7/100 -> 2.805 | AE16: =I16*AD16/1000 -> 0
A17: БСТ В7,5 (М100) П4 | J17: ='1'!J17 -> 175 | K17: 0 | L17: ='1'!L17 -> 1035 | M17: 0 | N17: ='1'!N17 -> 900 | O17: 0 | P17: ='1'!P17 -> 900 | Q17: 0 | R17: ='1'!R17 -> 900 | S17: 0 | T17: 2.345 | U17: 0 | V17: 1.925 | W17: 0 | X17: 2.275 | Y17: 0 | Z17: 2.625 | AA17: 0 | AB17: 2.8 | AC17: 0 | AD17: 2.975 | AE17: 0
A18: БСТ В7,5 (М100) Ж4 | J18: ='1'!J18 -> 125 | K18: 0 | L18: ='1'!L18 -> 855 | M18: 0 | N18: ='1'!N18 -> 1100 | O18: 0 | P18: ='1'!P18 -> 1100 | Q18: 0 | R18: ='1'!R18 -> 1100 | S18: 0 | T18: 1.675 | U18: 0 | V18: 1.375 | W18: 0 | X18: 1.625 | Y18: 0 | Z18: 1.875 | AA18: 0 | AB18: 2 | AC18: 0 | AD18: 2.125 | AE18: 0
A19: БСТ В12,5 (М150) П3 | J19: ='1'!J19 -> 200 | K19: 0 | L19: ='1'!L19 -> 970 | M19: 0 | N19: ='1'!N19 -> 960 | O19: 0 | P19: ='1'!P19 -> 960 | Q19: 0 | R19: ='1'!R19 -> 960 | S19: 0 | T19: 2.68 | U19: 0 | V19: 2.2 | W19: 0 | X19: 2.6 | Y19: 0 | Z19: 3 | AA19: 0 | AB19: 3.2 | AC19: 0 | AD19: 3.4 | AE19: 0
A20: БСТ В12,5 (М150) П4 | J20: ='1'!J20 -> 210 | K20: 0 | L20: ='1'!L20 -> 1000 | M20: 0 | N20: ='1'!N20 -> 920 | O20: 0 | P20: ='1'!P20 -> 920 | Q20: 0 | R20: ='1'!R20 -> 920 | S20: 0 | T20: 2.814 | U20: 0 | V20: 2.31 | W20: 0 | X20: 2.73 | Y20: 0 | Z20: 3.15 | AA20: 0 | AB20: 3.36 | AC20: 0 | AD20: 3.57 | AE20: 0
A21: БСТ В12,5 (М150) Ж4 | J21: ='1'!J21 -> 155 | K21: 0 | L21: ='1'!L21 -> 840 | M21: 0 | N21: ='1'!N21 -> 1100 | O21: 0 | P21: ='1'!P21 -> 1100 | Q21: 0 | R21: ='1'!R21 -> 1100 | S21: 0 | T21: 2.077 | U21: 0 | V21: 1.705 | W21: 0 | X21: 2.015 | Y21: 0 | Z21: 2.325 | AA21: 0 | AB21: 2.48 | AC21: 0 | AD21: 2.635 | AE21: 0
A22: БСТ В15 (М200) П3 | J22: ='1'!J22 -> 230 | K22: 0 | L22: ='1'!L22 -> 950 | M22: 0 | N22: ='1'!N22 -> 970 | O22: 0 | P22: ='1'!P22 -> 970 | Q22: 0 | R22: ='1'!R22 -> 970 | S22: 0 | T22: 3.082 | U22: 0 | V22: 2.53 | W22: 0 | X22: 2.99 | Y22: 0 | Z22: 3.45 | AA22: 0 | AB22: 3.68 | AC22: 0 | AD22: 3.91 | AE22: 0
A23: БСТ В15 (М200) П4 | J23: ='1'!J23 -> 240 | K23: 0 | L23: ='1'!L23 -> 970 | M23: 0 | N23: ='1'!N23 -> 930 | O23: 0 | P23: ='1'!P23 -> 930 | Q23: 0 | R23: ='1'!R23 -> 930 | S23: 0 | T23: 3.216 | U23: 0 | V23: 2.64 | W23: 0 | X23: 3.12 | Y23: 0 | Z23: 3.6 | AA23: 0 | AB23: 3.84 | AC23: 0 | AD23: 4.08 | AE23: 0
A24: БСТ В15 (М200) Ж4 | J24: ='1'!J24 -> 185 | K24: 0 | L24: ='1'!L24 -> 850 | M24: 0 | N24: ='1'!N24 -> 1100 | O24: 0 | P24: ='1'!P24 -> 1100 | Q24: 0 | R24: ='1'!R24 -> 1100 | S24: 0 | T24: 2.479 | U24: 0 | V24: 2.035 | W24: 0 | X24: 2.405 | Y24: 0 | Z24: 2.775 | AA24: 0 | AB24: 2.96 | AC24: 0 | AD24: 3.145 | AE24: 0
A25: БСТ В20 (М250) П3 | J25: ='1'!J25 -> 250 | K25: 0 | L25: ='1'!L25 -> 910 | M25: 0 | N25: ='1'!N25 -> 975 | O25: 0 | P25: ='1'!P25 -> 975 | Q25: 0 | R25: ='1'!R25 -> 975 | S25: 0 | T25: 3.35 | U25: 0 | V25: 2.75 | W25: 0 | X25: 3.25 | Y25: 0 | Z25: 3.75 | AA25: 0 | AB25: 4 | AC25: 0 | AD25: 4.25 | AE25: 0
A26: БСТ В20 (М250) П4 | J26: ='1'!J26 -> 270 | K26: 0 | L26: ='1'!L26 -> 930 | M26: 0 | N26: ='1'!N26 -> 935 | O26: 0 | P26: ='1'!P26 -> 935 | Q26: 0 | R26: ='1'!R26 -> 935 | S26: 0 | T26: 3.618 | U26: 0 | V26: 2.97 | W26: 0 | X26: 3.51 | Y26: 0 | Z26: 4.05 | AA26: 0 | AB26: 4.32 | AC26: 0 | AD26: 4.59 | AE26: 0
A27: БСТ В20 (М250) Ж4 | J27: ='1'!J27 -> 200 | K27: 0 | L27: ='1'!L27 -> 910 | M27: 0 | N27: ='1'!N27 -> 915 | O27: 0 | P27: ='1'!P27 -> 915 | Q27: 0 | R27: ='1'!R27 -> 915 | S27: 0 | T27: 2.68 | U27: 0 | V27: 2.2 | W27: 0 | X27: 2.6 | Y27: 0 | Z27: 3 | AA27: 0 | AB27: 3.2 | AC27: 0 | AD27: 3.4 | AE27: 0
A28: БСТ В22,5 (М300) П3 | J28: ='1'!J28 -> 280 | K28: 0 | L28: ='1'!L28 -> 895 | M28: 0 | N28: ='1'!N28 -> 980 | O28: 0 | P28: ='1'!P28 -> 980 | Q28: 0 | R28: ='1'!R28 -> 980 | S28: 0 | T28: 3.752 | U28: 0 | V28: 3.08 | W28: 0 | X28: 3.64 | Y28: 0 | Z28: 4.2 | AA28: 0 | AB28: 4.48 | AC28: 0 | AD28: 4.76 | AE28: 0
A29: БСТ В22,5 (М300) П4 | J29: ='1'!J29 -> 290 | K29: 0 | L29: ='1'!L29 -> 910 | M29: 0 | N29: ='1'!N29 -> 940 | O29: 0 | P29: ='1'!P29 -> 940 | Q29: 0 | R29: ='1'!R29 -> 940 | S29: 0 | T29: 3.886 | U29: 0 | V29: 3.19 | W29: 0 | X29: 3.77 | Y29: 0 | Z29: 4.35 | AA29: 0 | AB29: 4.64 | AC29: 0 | AD29: 4.93 | AE29: 0
A30: БСТ В25 (М350) П3 | J30: ='1'!J30 -> 305 | K30: 0 | L30: ='1'!L30 -> 890 | M30: 0 | N30: ='1'!N30 -> 995 | O30: 0 | P30: ='1'!P30 -> 995 | Q30: 0 | R30: ='1'!R30 -> 995 | S30: 0 | T30: 4.087 | U30: 0 | V30: 3.355 | W30: 0 | X30: 3.965 | Y30: 0 | Z30: 4.575 | AA30: 0 | AB30: 4.88 | AC30: 0 | AD30: 5.185 | AE30: 0
A31: БСТ В25 (М350) П4 | J31: ='1'!J31 -> 310 | K31: 0 | L31: ='1'!L31 -> 915 | M31: 0 | N31: ='1'!N31 -> 950 | O31: 0 | P31: ='1'!P31 -> 950 | Q31: 0 | R31: ='1'!R31 -> 950 | S31: 0 | T31: 4.154 | U31: 0 | V31: 3.41 | W31: 0 | X31: 4.03 | Y31: 0 | Z31: 4.65 | AA31: 0 | AB31: 4.96 | AC31: 0 | AD31: 5.27 | AE31: 0
A32: БСТ В30 (М400) П3 | J32: ='1'!J32 -> 350 | K32: 0 | L32: ='1'!L32 -> 855 | M32: 0 | N32: ='1'!N32 -> 1005 | O32: 0 | P32: ='1'!P32 -> 1005 | Q32: 0 | R32: ='1'!R32 -> 1005 | S32: 0 | T32: 4.69 | U32: 0 | V32: 3.85 | W32: 0 | X32: 4.55 | Y32: 0 | Z32: 5.25 | AA32: 0 | AB32: 5.6 | AC32: 0 | AD32: 5.95 | AE32: 0
A33: БСТ В30 (М400) П4 | J33: ='1'!J33 -> 360 | K33: 0 | L33: ='1'!L33 -> 880 | M33: 0 | N33: ='1'!N33 -> 960 | O33: 0 | P33: ='1'!P33 -> 960 | Q33: 0 | R33: ='1'!R33 -> 960 | S33: 0 | T33: 4.824 | U33: 0 | V33: 3.96 | W33: 0 | X33: 4.68 | Y33: 0 | Z33: 5.4 | AA33: 0 | AB33: 5.76 | AC33: 0 | AD33: 6.12 | AE33: 0
A34: БСТ В35 (М450) П3 | J34: ='1'!J34 -> 397 | K34: 0 | L34: ='1'!L34 -> 790 | M34: 0 | N34: ='1'!N34 -> 1020 | O34: 0 | P34: ='1'!P34 -> 1020 | Q34: 0 | R34: ='1'!R34 -> 1020 | S34: 0 | T34: 5.3198 | U34: 0 | V34: 4.367 | W34: 0 | X34: 5.161 | Y34: 0 | Z34: 5.955 | AA34: 0 | AB34: 6.352 | AC34: 0 | AD34: 6.749 | AE34: 0
A35: БСТ В35 (М450) П4 | J35: ='1'!J35 -> 413 | K35: 0 | L35: ='1'!L35 -> 810 | M35: 0 | N35: ='1'!N35 -> 970 | O35: 0 | P35: ='1'!P35 -> 970 | Q35: 0 | R35: ='1'!R35 -> 970 | S35: 0 | T35: 5.5342 | U35: 0 | V35: 4.543 | W35: 0 | X35: 5.369 | Y35: 0 | Z35: 6.195 | AA35: 0 | AB35: 6.608 | AC35: 0 | AD35: 7.021 | AE35: 0
A36: БСТ В40 (М500) П3 | J36: ='1'!J36 -> 440 | K36: 0 | L36: ='1'!L36 -> 735 | M36: 0 | N36: ='1'!N36 -> 1040 | O36: 0 | P36: ='1'!P36 -> 1040 | Q36: 0 | R36: ='1'!R36 -> 1040 | S36: 0 | T36: 5.896 | U36: 0 | V36: 4.84 | W36: 0 | X36: 5.72 | Y36: 0 | Z36: 6.6 | AA36: 0 | AB36: 7.04 | AC36: 0 | AD36: 7.48 | AE36: 0
A37: БСТ В40 (М500) П4 | J37: ='1'!J37 -> 460 | K37: 0 | L37: ='1'!L37 -> 755 | M37: 0 | N37: ='1'!N37 -> 985 | O37: 0 | P37: ='1'!P37 -> 985 | Q37: 0 | R37: ='1'!R37 -> 985 | S37: 0 | T37: 6.164 | U37: 0 | V37: 5.06 | W37: 0 | X37: 5.98 | Y37: 0 | Z37: 6.9 | AA37: 0 | AB37: 7.36 | AC37: 0 | AD37: 7.82 | AE37: 0
A38: БСТ В45 (М550) П3 | J38: ='1'!J38 -> 480 | K38: 0 | L38: ='1'!L38 -> 765 | M38: 0 | N38: ='1'!N38 -> 1060 | O38: 0 | P38: ='1'!P38 -> 1060 | Q38: 0 | R38: ='1'!R38 -> 1060 | S38: 0 | T38: 6.432 | U38: 0 | V38: 5.28 | W38: 0 | X38: 6.24 | Y38: 0 | Z38: 7.2 | AA38: 0 | AB38: 7.68 | AC38: 0 | AD38: 8.16 | AE38: 0
A39: БСТ В45 (М550) П4 | J39: ='1'!J39 -> 500 | K39: 0 | L39: ='1'!L39 -> 795 | M39: 0 | N39: ='1'!N39 -> 1010 | O39: 0 | P39: ='1'!P39 -> 1010 | Q39: 0 | R39: ='1'!R39 -> 1010 | S39: 0 | T39: 6.7 | U39: 0 | V39: 5.5 | W39: 0 | X39: 6.5 | Y39: 0 | Z39: 7.5 | AA39: 0 | AB39: 8 | AC39: 0 | AD39: 8.5 | AE39: 0
A40: Раствор М 50/Пк 1-4 | J40: ='1'!J40 -> 185 | K40: 0 | L40: ='1'!L40 -> 1675 | M40: 0 | O40: 0 | Q40: 0 | S40: 0 | T40: 2.479 | U40: 0 | V40: 2.035 | W40: 0 | X40: 2.405 | Y40: 0 | Z40: 2.775 | AA40: 0 | AB40: 2.96 | AC40: 0 | AD40: 3.145 | AE40: 0
A41: Раствор М100/Пк 1-4 | J41: ='1'!J41 -> 240 | K41: 0 | L41: ='1'!L41 -> 1650 | M41: 0 | O41: 0 | Q41: 0 | S41: 0 | T41: 3.216 | U41: 0 | V41: 2.64 | W41: 0 | X41: 3.12 | Y41: 0 | Z41: 3.6 | AA41: 0 | AB41: 3.84 | AC41: 0 | AD41: 4.08 | AE41: 0
A42: Раствор М150/Пк 1-4 | J42: ='1'!J42 -> 290 | K42: 0 | L42: ='1'!L42 -> 1620 | M42: 0 | O42: 0 | Q42: 0 | S42: 0 | T42: 3.886 | U42: 0 | V42: 3.19 | W42: 0 | X42: 3.77 | Y42: 0 | Z42: 4.35 | AA42: 0 | AB42: 4.64 | AC42: 0 | AD42: 4.93 | AE42: 0
A43: Раствор М200/Пк 1-4 | J43: ='1'!J43 -> 320 | K43: 0 | L43: ='1'!L43 -> 1590 | M43: 0 | O43: 0 | Q43: 0 | S43: 0 | T43: 4.288 | U43: 0 | V43: 3.52 | W43: 0 | X43: 4.16 | Y43: 0 | Z43: 4.8 | AA43: 0 | AB43: 5.12 | AC43: 0 | AD43: 5.44 | AE43: 0
A44: ПБСТ В12,5 (М150) П4 | J44: ='1'!J44 -> 290 | K44: 0 | L44: ='1'!L44 -> 1620 | M44: 0 | O44: 0 | Q44: 0 | S44: 0 | T44: 3.886 | U44: 0 | V44: 3.19 | W44: 0 | X44: 3.77 | Y44: 0 | Z44: 4.35 | AA44: 0 | AB44: 4.64 | AC44: 0 | AD44: 4.93 | AE44: 0
A45: ПБСТ В15 (М200) П4 | J45: ='1'!J45 -> 320 | K45: 0 | L45: ='1'!L45 -> 1590 | M45: 0 | O45: 0 | Q45: 0 | S45: 0 | T45: 4.288 | U45: 0 | V45: 3.52 | W45: 0 | X45: 4.16 | Y45: 0 | Z45: 4.8 | AA45: 0 | AB45: 5.12 | AC45: 0 | AD45: 5.44 | AE45: 0
A46: ПБСТ В20 (М250) П4 | J46: ='1'!J46 -> 380 | K46: 0 | L46: ='1'!L46 -> 1560 | M46: 0 | O46: 0 | Q46: 0 | S46: 0 | T46: 5.092 | U46: 0 | V46: 4.18 | W46: 0 | X46: 4.94 | Y46: 0 | Z46: 5.7 | AA46: 0 | AB46: 6.08 | AC46: 0 | AD46: 6.46 | AE46: 0
A47: ПБСТ В22,5 (М300) П4 | J47: ='1'!J47 -> 415 | K47: 0 | L47: ='1'!L47 -> 1550 | M47: 0 | O47: 0 | Q47: 0 | S47: 0 | T47: 5.561 | U47: 0 | V47: 4.565 | W47: 0 | X47: 5.395 | Y47: 0 | Z47: 6.225 | AA47: 0 | AB47: 6.64 | AC47: 0 | AD47: 7.055 | AE47: 0
A48: ПБСТ В25 (М350) П4 | J48: ='1'!J48 -> 440 | K48: 0 | L48: ='1'!L48 -> 1540 | M48: 0 | O48: 0 | Q48: 0 | S48: 0 | T48: 5.896 | U48: 0 | V48: 4.84 | W48: 0 | X48: 5.72 | Y48: 0 | Z48: 6.6 | AA48: 0 | AB48: 7.04 | AC48: 0 | AD48: 7.48 | AE48: 0
A49: Пусковая смесь | J49: ='1'!J49 -> 400 | K49: 0 | L49: ='1'!L49 -> 500 | M49: 0 | O49: 0 | Q49: 0 | S49: 0 | U49: 0
A50: Итого: | B50: =SUM(B15:B49) -> 0 | C50: =SUM(C15:C49) -> 0 | D50: 0 | E50: 0 | F50: 0 | G50: 0 | H50: 0 | I50: 0 | K50: =SUM(K15:K49) -> 0 | M50: =SUM(M15:M49) -> 0 | O50: =SUM(O15:O49) -> 0 | Q50: =SUM(Q15:Q49) -> 0 | S50: =SUM(S15:S49) -> 0 | U50: =SUM(U15:U49) -> 0 | W50: =SUM(W15:W49) -> 0 | Y50: =SUM(Y15:Y49) -> 0 | AA50: =SUM(AA15:AA49) -> 0 | AC50: =SUM(AC15:AC49) -> 0 | AE50: =SUM(AE15:AE49) -> 0
B51: =B50+C50+D50 -> 0 | E51: =E50+F50+I50 -> 0 | V51: =W50+Y50+AA50+AC50+AE50 -> 0

Sheet 3
A1: 2017-09-01 | B1: Недостача+/ Экономия- | H1: Остатки | I1: Коэф. | K1: Приход | M1: Расход | O1: Расход сторон | P1: Расход продажа | S1: Остатки
A2: Цемент 400 | B2: 0 | H2: ='2'!S2 -> 0 | M2: 0 | S2: =H2+K2-M2-O2-P2 -> 0
A3: Цемент 500 | B3: 0 | H3: ='2'!S3 -> 0 | M3: 0 | S3: 0
A4: Цемент | B4: 0 | H4: ='2'!S4 -> 83.78 | M4: =K50 -> 0 | S4: 83.78
A5: Песок | B5: 0 | H5: ='2'!S5 -> 1213.1738 | M5: =M50 -> 0 | S5: 1213.1738
A6: Гранит | B6: 0 | H6: ='2'!S6 -> 506.4745 | M6: =O50 -> 0 | S6: 506.4745
A7: Гравий | B7: 0 | H7: ='2'!S7 -> 912.149 | M7: =Q50 -> 0 | S7: 912.149
A8: ПГП | B8: 0 | H8: ='2'!S8 -> 0 | M8: =S50 -> 0 | S8: 0
A9: СП-3 | B9: 0 | H9: ='2'!S9 -> -13.593204 | M9: =U50 -> 0 | S9: =H9+K9-M9-O9-P9 -> -13.593204
A10: Криопласт ЭКСТРА | B10: 0 | H10: ='2'!S10 -> -1.217955 | L10: , | M10: =V51 -> 0 | S10: =H10+K10-M10-O10-P10 -> -1.217955
A11: Наименование продукции | B11: кол-во выпущено | E11: ПМД | J11: цемент | L11: песок | N11: гранит | P11: гравий | R11: ПГП | T11: СП-3 | V11: -5 | X11: -10 | Z11: -15 | AB11: -20 | AD11: -25
B13: Гранит | C13: Гравий | D13: ПГП | E13: -5 | F13: -10 | G13: -15 | H13: -20 | I13: -25 | J13: норма | K13: кол-во | L13: норма | M13: кол-во | N13: норма | O13: кол-во | P13: норма | Q13: кол-во | R13: норма | S13: кол-во | T13: норма | U13: кол-во | V13: норма | W13: кол-во | X13: норма | Y13: кол-во | Z13: норма | AA13: кол-во | AB13: норма | AC13: кол-во | AD13: норма | AE13: кол-во
B14: куб.м | C14: куб.м | D14: куб.м | E14: куб.м | F14: куб.м | G14: куб.м | H14: куб.м | I14: куб.м | J14: кг | K14: тн | L14: кг | M14: тн | N14: кг | O14: тн | P14: кг | Q14: тн | R14: кг | S14: тн | T14: кг | U14: тн | V14: кг | W14: тн | X14: кг | Y14: тн | Z14: кг | AA14: тн | AB14: кг | AC14: тн | AD14: кг | AE14: тн
A15: БСТ В3,5 F50 W4 П4 | J15: ='2'!J15 -> 120 | K15: =(B15+C15+D15)*J15/1000 -> 0 | L15: ='2'!L15 -> 1055 | M15: =(B15+C15+D15)*L15/1000 -> 0 | N15: ='2'!N15 -> 900 | O15: =B15*N15/1000 -> 0 | P15: ='2'!P15 -> 900 | Q15: =C15*P15/1000 -> 0 | R15: ='2'!R15 -> 900 | S15: =D15*R15/1000 -> 0 | T15: =J15*1.34/100 -> 1.608 | U15: =(B15+C15+D15-E15-F15-I15-G15-H15)*T15/1000 -> 0 | V15: =J15*1.1/100 -> 1.32 | W15: =E15*V15/1000 -> 0 | X15: =J15*1.3/100 -> 1.56 | Y15: =F15*X15/1000 -> 0 | Z15: =J15*1.5/100 -> 1.8 | AA15: =G15*Z15/1000 -> 0 | AB15: =J15*1.6/100 -> 1.92 | AC15: =H15*AB15/1000 -> 0 | AD15: =J15*1.7/100 -> 2.04 | AE15: =I15*AD15/1000 -> 0
A16: БСТ В7,5 (М100) П3 | J16: ='2'!J16 -> 165 | K16: =(B16+C16+D16)*J16/1000 -> 0 | L16: ='2'!L16 -> 1000 | M16: 0 | N16: ='2'!N16 -> 945 | O16: 0 | P16: ='2'!P16 -> 945 | Q16: 0 | R16: ='2'!R16 -> 945 | S16: 0 | T16: =J16*1.34/100 -> 2.211 | U16: =(B16+C16+D16-E16-F16-I16-G16-H16)*T16/1000 -> 0 | V16: =J16*1.1/100 -> 1.815 | W16: =E16*V16/1000 -> 0 | X16: =J16*1.3/100 -> 2.145 | Y16: =F16*X16/1000 -> 0 | Z16: =J16*1.5/100 -> 2.475 | AA16: =G16*Z16/1000 -> 0 | AB16: =J16*1.6/100 -> 2.64 | AC16: =H16*AB16/1000 -> 0 | AD16: =J16*1.7/100 -> 2.805 | AE16: =I16*AD16/1000 -> 0
A17: БСТ В7,5 (М100) П4 | J17: ='2'!J17 -> 175 | K17: 0 | L17: ='2'!L17 -> 1035 | M17: 0 | N17: ='2'!N17 -> 900 | O17: 0 | P17: ='2'!P17 -> 900 | Q17: 0 | R17: ='2'!R17 -> 900 | S17: 0 | T17: 2.345 | U17: 0 | V17: 1.925 | W17: 0 | X17: 2.275 | Y17: 0 | Z17: 2.625 | AA17: 0 | AB17: 2.8 | AC17: 0 | AD17: 2.975 | AE17: 0
A18: БСТ В7,5 (М100) Ж4 | J18: ='2'!J18 -> 125 | K18: 0 | L18: ='2'!L18 -> 855 | M18: 0 | N18: ='2'!N18 -> 1100 | O18: 0 | P18: ='2'!P18 -> 1100 | Q18: 0 | R18: ='2'!R18 -> 1100 | S18: 0 | T18: 1.675 | U18: 0 | V18: 1.375 | W18: 0 | X18: 1.625 | Y18: 0 | Z18: 1.875 | AA18: 0 | AB18: 2 | AC18: 0 | AD18: 2.125 | AE18: 0
A19: БСТ В12,5 (М150) П3 | J19: ='2'!J19 -> 200 | K19: 0 | L19: ='2'!L19 -> 970 | M19: 0 | N19: ='2'!N19 -> 960 | O19: 0 | P19: ='2'!P19 -> 960 | Q19: 0 | R19: ='2'!R19 -> 960 | S19: 0 | T19: 2.68 | U19: 0 | V19: 2.2 | W19: 0 | X19: 2.6 | Y19: 0 | Z19: 3 | AA19: 0 | AB19: 3.2 | AC19: 0 | AD19: 3.4 | AE19: 0
A20: БСТ В12,5 (М150) П4 | J20: ='2'!J20 -> 210 | K20: 0 | L20: ='2'!L20 -> 1000 | M20: 0 | N20: ='2'!N20 -> 920 | O20: 0 | P20: ='2'!P20 -> 920 | Q20: 0 | R20: ='2'!R20 -> 920 | S20: 0 | T20: 2.814 | U20: 0 | V20: 2.31 | W20: 0 | X20: 2.73 | Y20: 0 | Z20: 3.15 | AA20: 0 | AB20: 3.36 | AC20: 0 | AD20: 3.57 | AE20: 0
A21: БСТ В12,5 (М150) Ж4 | J21: ='2'!J21 -> 155 | K21: 0 | L21: ='2'!L21 -> 840 | M21: 0 | N21: ='2'!N21 -> 1100 | O21: 0 | P21: ='2'!P21 -> 1100 | Q21: 0 | R21: ='2'!R21 -> 1100 | S21: 0 | T21: 2.077 | U21: 0 | V21: 1.705 | W21: 0 | X21: 2.015 | Y21: 0 | Z21: 2.325 | AA21: 0 | AB21: 2.48 | AC21: 0 | AD21: 2.635 | AE21: 0
A22: БСТ В15 (М200) П3 | J22: ='2'!J22 -> 230 | K22: 0 | L22: ='2'!L22 -> 950 | M22: 0 | N22: ='2'!N22 -> 970 | O22: 0 | P22: ='2'!P22 -> 970 | Q22: 0 | R22: ='2'!R22 -> 970 | S22: 0 | T22: 3.082 | U22: 0 | V22: 2.53 | W22: 0 | X22: 2.99 | Y22: 0 | Z22: 3.45 | AA22: 0 | AB22: 3.68 | AC22: 0 | AD22: 3.91 | AE22: 0
A23: БСТ В15 (М200) П4 | J23: ='2'!J23 -> 240 | K23: 0 | L23: ='2'!L23 -> 970 | M23: 0 | N23: ='2'!N23 -> 930 | O23: 0 | P23: ='2'!P23 -> 930 | Q23: 0 | R23: ='2'!R23 -> 930 | S23: 0 | T23: 3.216 | U23: 0 | V23: 2.64 | W23: 0 | X23: 3.12 | Y23: 0 | Z23: 3.6 | AA23: 0 | AB23: 3.84 | AC23: 0 | AD23: 4.08 | AE23: 0
A24: БСТ В15 (М200) Ж4 | J24: ='2'!J24 -> 185 | K24: 0 | L24: ='2'!L24 -> 850 | M24: 0 | N24: ='2'!N24 -> 1100 | O24: 0 | P24: ='2'!P24 -> 1100 | Q24: 0 | R24: ='2'!R24 -> 1100 | S24: 0 | T24: 2.479 | U24: 0 | V24: 2.035 | W24: 0 | X24: 2.405 | Y24: 0 | Z24: 2.775 | AA24: 0 | AB24: 2.96 | AC24: 0 | AD24: 3.145 | AE24: 0
A25: БСТ В20 (М250) П3 | J25: ='2'!J25 -> 250 | K25: 0 | L25: ='2'!L25 -> 910 | M25: 0 | N25: ='2'!N25 -> 975 | O25: 0 | P25: ='2'!P25 -> 975 | Q25: 0 | R25: ='2'!R25 -> 975 | S25: 0 | T25: 3.35 | U25: 0 | V25: 2.75 | W25: 0 | X25: 3.25 | Y25: 0 | Z25: 3.75 | AA25: 0 | AB25: 4 | AC25: 0 | AD25: 4.25 | AE25: 0
A26: БСТ В20 (М250) П4 | J26: ='2'!J26 -> 270 | K26: 0 | L26: ='2'!L26 -> 930 | M26: 0 | N26: ='2'!N26 -> 935 | O26: 0 | P26: ='2'!P26 -> 935 | Q26: 0 | R26: ='2'!R26 -> 935 | S26: 0 | T26: 3.618 | U26: 0 | V26: 2.97 | W26: 0 | X26: 3.51 | Y26: 0 | Z26: 4.05 | AA26: 0 | AB26: 4.32 | AC26: 0 | AD26: 4.59 | AE26: 0
A27: БСТ В20 (М250) Ж4 | J27: ='2'!J27 -> 200 | K27: 0 | L27: ='2'!L27 -> 910 | M27: 0 | N27: ='2'!N27 -> 915 | O27: 0 | P27: ='2'!P27 -> 915 | Q27: 0 | R27: ='2'!R27 -> 915 | S27: 0 | T27: 2.68 | U27: 0 | V27: 2.2 | W27: 0 | X27: 2.6 | Y27: 0 | Z27: 3 | AA27: 0 | AB27: 3.2 | AC27: 0 | AD27: 3.4 | AE27: 0
A28: БСТ В22,5 (М300) П3 | J28: ='2'!J28 -> 280 | K28: 0 | L28: ='2'!L28 -> 895 | M28: 0 | N28: ='2'!N28 -> 980 | O28: 0 | P28: ='2'!P28 -> 980 | Q28: 0 | R28: ='2'!R28 -> 980 | S28: 0 | T28: 3.752 | U28: 0 | V28: 3.08 | W28: 0 | X28: 3.64 | Y28: 0 | Z28: 4.2 | AA28: 0 | AB28: 4.48 | AC28: 0 | AD28: 4.76 | AE28: 0
A29: БСТ В22,5 (М300) П4 | J29: ='2'!J29 -> 290 | K29: 0 | L29: ='2'!L29 -> 910 | M29: 0 | N29: ='2'!N29 -> 940 | O29: 0 | P29: ='2'!P29 -> 940 | Q29: 0 | R29: ='2'!R29 -> 940 | S29: 0 | T29: 3.886 | U29: 0 | V29: 3.19 | W29: 0 | X29: 3.77 | Y29: 0 | Z29: 4.35 | AA29: 0 | AB29: 4.64 | AC29: 0 | AD29: 4.93 | AE29: 0
A30: БСТ В25 (М350) П3 | J30: ='2'!J30 -> 305 | K30: 0 | L30: ='2'!L30 -> 890 | M30: 0 | N30: ='2'!N30 -> 995 | O30: 0 | P30: ='2'!P30 -> 995 | Q30: 0 | R30: ='2'!R30 -> 995 | S30: 0 | T30: 4.087 | U30: 0 | V30: 3.355 | W30: 0 | X30: 3.965 | Y30: 0 | Z30: 4.575 | AA30: 0 | AB30: 4.88 | AC30: 0 | AD30: 5.185 | AE30: 0
A31: БСТ В25 (М350) П4 | J31: ='2'!J31 -> 310 | K31: 0 | L31: ='2'!L31 -> 915 | M31: 0 | N31: ='2'!N31 -> 950 | O31: 0 | P31: ='2'!P31 -> 950 | Q31: 0 | R31: ='2'!R31 -> 950 | S31: 0 | T31: 4.154 | U31: 0 | V31: 3.41 | W31: 0 | X31: 4.03 | Y31: 0 | Z31: 4.65 | AA31: 0 | AB31: 4.96 | AC31: 0 | AD31: 5.27 | AE31: 0
A32: БСТ В30 (М400) П3 | J32: ='2'!J32 -> 350 | K32: 0 | L32: ='2'!L32 -> 855 | M32: 0 | N32: ='2'!N32 -> 1005 | O32: 0 | P32: ='2'!P32 -> 1005 | Q32: 0 | R32: ='2'!R32 -> 1005 | S32: 0 | T32: 4.69 | U32: 0 | V32: 3.85 | W32: 0 | X32: 4.55 | Y32: 0 | Z32: 5.25 | AA32: 0 | AB32: 5.6 | AC32: 0 | AD32: 5.95 | AE32: 0
A33: БСТ В30 (М400) П4 | J33: ='2'!J33 -> 360 | K33: 0 | L33: ='2'!L33 -> 880 | M33: 0 | N33: ='2'!N33 -> 960 | O33: 0 | P33: ='2'!P33 -> 960 | Q33: 0 | R33: ='2'!R33 -> 960 | S33: 0 | T33: 4.824 | U33: 0 | V33: 3.96 | W33: 0 | X33: 4.68 | Y33: 0 | Z33: 5.4 | AA33: 0 | AB33: 5.76 | AC33: 0 | AD33: 6.12 | AE33: 0
A34: БСТ В35 (М450) П3 | J34: ='2'!J34 -> 397 | K34: 0 | L34: ='2'!L34 -> 790 | M34: 0 | N34: ='2'!N34 -> 1020 | O34: 0 | P34: ='2'!P34 -> 1020 | Q34: 0 | R34: ='2'!R34 -> 1020 | S34: 0 | T34: 5.3198 | U34: 0 | V34: 4.367 | W34: 0 | X34: 5.161 | Y34: 0 | Z34: 5.955 | AA34: 0 | AB34: 6.352 | AC34: 0 | AD34: 6.749 | AE34: 0
A35: БСТ В35 (М450) П4 | J35: ='2'!J35 -> 413 | K35: 0 | L35: ='2'!L35 -> 810 | M35: 0 | N35: ='2'!N35 -> 970 | O35: 0 | P35: ='2'!P35 -> 970 | Q35: 0 | R35: ='2'!R35 -> 970 | S35: 0 | T35: 5.5342 | U35: 0 | V35: 4.543 | W35: 0 | X35: 5.369 | Y35: 0 | Z35: 6.195 | AA35: 0 | AB35: 6.608 | AC35: 0 | AD35: 7.021 | AE35: 0
A36: БСТ В40 (М500) П3 | J36: ='2'!J36 -> 440 | K36: 0 | L36: ='2'!L36 -> 735 | M36: 0 | N36: ='2'!N36 -> 1040 | O36: 0 | P36: ='2'!P36 -> 1040 | Q36: 0 | R36: ='2'!R36 -> 1040 | S36: 0 | T36: 5.896 | U36: 0 | V36: 4.84 | W36: 0 | X36: 5.72 | Y36: 0 | Z36: 6.6 | AA36: 0 | AB36: 7.04 | AC36: 0 | AD36: 7.48 | AE36: 0
A37: БСТ В40 (М500) П4 | J37: ='2'!J37 -> 460 | K37: 0 | L37: ='2'!L37 -> 755 | M37: 0 | N37: ='2'!N37 -> 985 | O37: 0 | P37: ='2'!P37 -> 985 | Q37: 0 | R37: ='2'!R37 -> 985 | S37: 0 | T37: 6.164 | U37: 0 | V37: 5.06 | W37: 0 | X37: 5.98 | Y37: 0 | Z37: 6.9 | AA37: 0 | AB37: 7.36 | AC37: 0 | AD37: 7.82 | AE37: 0
A38: БСТ В45 (М550) П3 | J38: ='2'!J38 -> 480 | K38: 0 | L38: ='2'!L38 -> 765 | M38: 0 | N38: ='2'!N38 -> 1060 | O38: 0 | P38: ='2'!P38 -> 1060 | Q38: 0 | R38: ='2'!R38 -> 1060 | S38: 0 | T38: 6.432 | U38: 0 | V38: 5.28 | W38: 0 | X38: 6.24 | Y38: 0 | Z38: 7.2 | AA38: 0 | AB38: 7.68 | AC38: 0 | AD38: 8.16 | AE38: 0
A39: БСТ В45 (М550) П4 | J39: ='2'!J39 -> 500 | K39: 0 | L39: ='2'!L39 -> 795 | M39: 0 | N39: ='2'!N39 -> 1010 | O39: 0 | P39: ='2'!P39 -> 1010 | Q39: 0 | R39: ='2'!R39 -> 1010 | S39: 0 | T39: 6.7 | U39: 0 | V39: 5.5 | W39: 0 | X39: 6.5 | Y39: 0 | Z39: 7.5 | AA39: 0 | AB39: 8 | AC39: 0 | AD39: 8.5 | AE39: 0
A40: Раствор М 50/Пк 1-4 | J40: ='2'!J40 -> 185 | K40: 0 | L40: ='2'!L40 -> 1675 | M40: 0 | O40: 0 | Q40: 0 | S40: 0 | T40: 2.479 | U40: 0 | V40: 2.035 | W40: 0 | X40: 2.405 | Y40: 0 | Z40: 2.775 | AA40: 0 | AB40: 2.96 | AC40: 0 | AD40: 3.145 | AE40: 0
A41: Раствор М100/Пк 1-4 | J41: ='2'!J41 -> 240 | K41: 0 | L41: ='2'!L41 -> 1650 | M41: 0 | O41: 0 | Q41: 0 | S41: 0 | T41: 3.216 | U41: 0 | V41: 2.64 | W41: 0 | X41: 3.12 | Y41: 0 | Z41: 3.6 | AA41: 0 | AB41: 3.84 | AC41: 0 | AD41: 4.08 | AE41: 0
A42: Раствор М150/Пк 1-4 | J42: ='2'!J42 -> 290 | K42: 0 | L42: ='2'!L42 -> 1620 | M42: 0 | O42: 0 | Q42: 0 | S42: 0 | T42: 3.886 | U42: 0 | V42: 3.19 | W42: 0 | X42: 3.77 | Y42: 0 | Z42: 4.35 | AA42: 0 | AB42: 4.64 | AC42: 0 | AD42: 4.93 | AE42: 0
A43: Раствор М200/Пк 1-4 | J43: ='2'!J43 -> 320 | K43: 0 | L43: ='2'!L43 -> 1590 | M43: 0 | O43: 0 | Q43: 0 | S43: 0 | T43: 4.288 | U43: 0 | V43: 3.52 | W43: 0 | X43: 4.16 | Y43: 0 | Z43: 4.8 | AA43: 0 | AB43: 5.12 | AC43: 0 | AD43: 5.44 | AE43: 0
A44: ПБСТ В12,5 (М150) П4 | J44: ='2'!J44 -> 290 | K44: 0 | L44: ='2'!L44 -> 1620 | M44: 0 | O44: 0 | Q44: 0 | S44: 0 | T44: 3.886 | U44: 0 | V44: 3.19 | W44: 0 | X44: 3.77 | Y44: 0 | Z44: 4.35 | AA44: 0 | AB44: 4.64 | AC44: 0 | AD44: 4.93 | AE44: 0
A45: ПБСТ В15 (М200) П4 | J45: ='2'!J45 -> 320 | K45: 0 | L45: ='2'!L45 -> 1590 | M45: 0 | O45: 0 | Q45: 0 | S45: 0 | T45: 4.288 | U45: 0 | V45: 3.52 | W45: 0 | X45: 4.16 | Y45: 0 | Z45: 4.8 | AA45: 0 | AB45: 5.12 | AC45: 0 | AD45: 5.44 | AE45: 0
A46: ПБСТ В20 (М250) П4 | J46: ='2'!J46 -> 380 | K46: 0 | L46: ='2'!L46 -> 1560 | M46: 0 | O46: 0 | Q46: 0 | S46: 0 | T46: 5.092 | U46: 0 | V46: 4.18 | W46: 0 | X46: 4.94 | Y46: 0 | Z46: 5.7 | AA46: 0 | AB46: 6.08 | AC46: 0 | AD46: 6.46 | AE46: 0
A47: ПБСТ В22,5 (М300) П4 | J47: ='2'!J47 -> 415 | K47: 0 | L47: ='2'!L47 -> 1550 | M47: 0 | O47: 0 | Q47: 0 | S47: 0 | T47: 5.561 | U47: 0 | V47: 4.565 | W47: 0 | X47: 5.395 | Y47: 0 | Z47: 6.225 | AA47: 0 | AB47: 6.64 | AC47: 0 | AD47: 7.055 | AE47: 0
A48: ПБСТ В25 (М350) П4 | J48: ='2'!J48 -> 440 | K48: 0 | L48: ='2'!L48 -> 1540 | M48: 0 | O48: 0 | Q48: 0 | S48: 0 | T48: 5.896 | U48: 0 | V48: 4.84 | W48: 0 | X48: 5.72 | Y48: 0 | Z48: 6.6 | AA48: 0 | AB48: 7.04 | AC48: 0 | AD48: 7.48 | AE48: 0
A49: Пусковая смесь | J49: ='2'!J49 -> 400 | K49: 0 | L49: ='2'!L49 -> 500 | M49: 0 | O49: 0 | Q49: 0 | S49: 0 | U49: 0
A50: Итого: | B50: =SUM(B15:B49) -> 0 | C50: =SUM(C15:C49) -> 0 | D50: 0 | E50: 0 | F50: 0 | G50: 0 | H50: 0 | I50: 0 | K50: =SUM(K15:K49) -> 0 | M50: =SUM(M15:M49) -> 0 | O50: =SUM(O15:O49) -> 0 | Q50: =SUM(Q15:Q49) -> 0 | S50: =SUM(S15:S49) -> 0 | U50: =SUM(U15:U49) -> 0 | W50: =SUM(W15:W49) -> 0 | Y50: =SUM(Y15:Y49) -> 0 | AA50: =SUM(AA15:AA49) -> 0 | AC50: =SUM(AC15:AC49) -> 0 | AE50: =SUM(AE15:AE49) -> 0
B51: =B50+C50+D50 -> 0 | E51: =E50+F50+I50 -> 0 | V51: =W50+Y50+AA50+AC50+AE50 -> 0

Sheet 4
A1: 2017-09-01 | B1: Недостача+/ Экономия- | H1: Остатки | I1: Коэф. | K1: Приход | M1: Расход | O1: Расход сторон | P1: Расход продажа | S1: Остатки
A2: Цемент 400 | B2: 0 | H2: ='3'!S2 -> 0 | M2: 0 | S2: =H2+K2-M2-O2-P2 -> 0
A3: Цемент 500 | B3: 0 | H3: ='3'!S3 -> 0 | M3: 0 | S3: 0
A4: Цемент | B4: 0 | H4: ='3'!S4 -> 83.78 | M4: =K50 -> 0 | S4: 83.78
A5: Песок | B5: 0 | H5: ='3'!S5 -> 1213.1738 | M5: =M50 -> 0 | S5: 1213.1738
A6: Гранит | B6: 0 | H6: ='3'!S6 -> 506.4745 | M6: =O50 -> 0 | S6: 506.4745
A7: Гравий | B7: 0 | H7: ='3'!S7 -> 912.149 | M7: =Q50 -> 0 | S7: 912.149
A8: ПГП | B8: 0 | H8: ='3'!S8 -> 0 | M8: =S50 -> 0 | S8: 0
A9: СП-3 | B9: 0 | H9: ='3'!S9 -> -13.593204 | M9: =U50 -> 0 | S9: =H9+K9-M9-O9-P9 -> -13.593204
A10: Криопласт ЭКСТРА | B10: 0 | H10: ='3'!S10 -> -1.217955 | L10: , | M10: =V51 -> 0 | S10: =H10+K10-M10-O10-P10 -> -1.217955
A11: Наименование продукции | B11: кол-во выпущено | E11: ПМД | J11: цемент | L11: песок | N11: гранит | P11: гравий | R11: ПГП | T11: СП-3 | V11: -5 | X11: -10 | Z11: -15 | AB11: -20 | AD11: -25
B13: Гранит | C13: Гравий | D13: ПГП | E13: -5 | F13: -10 | G13: -15 | H13: -20 | I13: -25 | J13: норма | K13: кол-во | L13: норма | M13: кол-во | N13: норма | O13: кол-во | P13: норма | Q13: кол-во | R13: норма | S13: кол-во | T13: норма | U13: кол-во | V13: норма | W13: кол-во | X13: норма | Y13: кол-во | Z13: норма | AA13: кол-во | AB13: норма | AC13: кол-во | AD13: норма | AE13: кол-во
B14: куб.м | C14: куб.м | D14: куб.м | E14: куб.м | F14: куб.м | G14: куб.м | H14: куб.м | I14: куб.м | J14: кг | K14: тн | L14: кг | M14: тн | N14: кг | O14: тн | P14: кг | Q14: тн | R14: кг | S14: тн | T14: кг | U14: тн | V14: кг | W14: тн | X14: кг | Y14: тн | Z14: кг | AA14: тн | AB14: кг | AC14: тн | AD14: кг | AE14: тн
A15: БСТ В3,5 F50 W4 П4 | J15: ='3'!J15 -> 120 | K15: =(B15+C15+D15)*J15/1000 -> 0 | L15: ='3'!L15 -> 1055 | M15: =(B15+C15+D15)*L15/1000 -> 0 | N15: ='3'!N15 -> 900 | O15: =B15*N15/1000 -> 0 | P15: ='3'!P15 -> 900 | Q15: =C15*P15/1000 -> 0 | R15: ='3'!R15 -> 900 | S15: =D15*R15/1000 -> 0 | T15: =J15*1.34/100 -> 1.608 | U15: =(B15+C15+D15-E15-F15-I15-G15-H15)*T15/1000 -> 0 | V15: =J15*1.1/100 -> 1.32 | W15: =E15*V15/1000 -> 0 | X15: =J15*1.3/100 -> 1.56 | Y15: =F15*X15/1000 -> 0 | Z15: =J15*1.5/100 -> 1.8 | AA15: =G15*Z15/1000 -> 0 | AB15: =J15*1.6/100 -> 1.92 | AC15: =H15*AB15/1000 -> 0 | AD15: =J15*1.7/100 -> 2.04 | AE15: =I15*AD15/1000 -> 0
A16: БСТ В7,5 (М100) П3 | J16: ='3'!J16 -> 165 | K16: =(B16+C16+D16)*J16/1000 -> 0 | L16: ='3'!L16 -> 1000 | M16: 0 | N16: ='3'!N16 -> 945 | O16: 0 | P16: ='3'!P16 -> 945 | Q16: 0 | R16: ='3'!R16 -> 945 | S16: 0 | T16: =J16*1.34/100 -> 2.211 | U16: =(B16+C16+D16-E16-F16-I16-G16-H16)*T16/1000 -> 0 | V16: =J16*1.1/100 -> 1.815 | W16: =E16*V16/1000 -> 0 | X16: =J16*1.3/100 -> 2.145 | Y16: =F16*X16/1000 -> 0 | Z16: =J16*1.5/100 -> 2.475 | AA16: =G16*Z16/1000 -> 0 | AB16: =J16*1.6/100 -> 2.64 | AC16: =H16*AB16/1000 -> 0 | AD16: =J16*1.7/100 -> 2.805 | AE16: =I16*AD16/1000 -> 0
A17: БСТ В7,5 (М100) П4 | J17: ='3'!J17 -> 175 | K17: 0 | L17: ='3'!L17 -> 1035 | M17: 0 | N17: ='3'!N17 -> 900 | O17: 0 | P17: ='3'!P17 -> 900 | Q17: 0 | R17: ='3'!R17 -> 900 | S17: 0 | T17: 2.345 | U17: 0 | V17: 1.925 | W17: 0 | X17: 2.275 | Y17: 0 | Z17: 2.625 | AA17: 0 | AB17: 2.8 | AC17: 0 | AD17: 2.975 | AE17: 0
A18: БСТ В7,5 (М100) Ж4 | J18: ='3'!J18 -> 125 | K18: 0 | L18: ='3'!L18 -> 855 | M18: 0 | N18: ='3'!N18 -> 1100 | O18: 0 | P18: ='3'!P18 -> 1100 | Q18: 0 | R18: ='3'!R18 -> 1100 | S18: 0 | T18: 1.675 | U18: 0 | V18: 1.375 | W18: 0 | X18: 1.625 | Y18: 0 | Z18: 1.875 | AA18: 0 | AB18: 2 | AC18: 0 | AD18: 2.125 | AE18: 0
A19: БСТ В12,5 (М150) П3 | J19: ='3'!J19 -> 200 | K19: 0 | L19: ='3'!L19 -> 970 | M19: 0 | N19: ='3'!N19 -> 960 | O19: 0 | P19: ='3'!P19 -> 960 | Q19: 0 | R19: ='3'!R19 -> 960 | S19: 0 | T19: 2.68 | U19: 0 | V19: 2.2 | W19: 0 | X19: 2.6 | Y19: 0 | Z19: 3 | AA19: 0 | AB19: 3.2 | AC19: 0 | AD19: 3.4 | AE19: 0
A20: БСТ В12,5 (М150) П4 | J20: ='3'!J20 -> 210 | K20: 0 | L20: ='3'!L20 -> 1000 | M20: 0 | N20: ='3'!N20 -> 920 | O20: 0 | P20: ='3'!P20 -> 920 | Q20: 0 | R20: ='3'!R20 -> 920 | S20: 0 | T20: 2.814 | U20: 0 | V20: 2.31 | W20: 0 | X20: 2.73 | Y20: 0 | Z20: 3.15 | AA20: 0 | AB20: 3.36 | AC20: 0 | AD20: 3.57 | AE20: 0
A21: БСТ В12,5 (М150) Ж4 | J21: ='3'!J21 -> 155 | K21: 0 | L21: ='3'!L21 -> 840 | M21: 0 | N21: ='3'!N21 -> 1100 | O21: 0 | P21: ='3'!P21 -> 1100 | Q21: 0 | R21: ='3'!R21 -> 1100 | S21: 0 | T21: 2.077 | U21: 0 | V21: 1.705 | W21: 0 | X21: 2.015 | Y21: 0 | Z21: 2.325 | AA21: 0 | AB21: 2.48 | AC21: 0 | AD21: 2.635 | AE21: 0
A22: БСТ В15 (М200) П3 | J22: ='3'!J22 -> 230 | K22: 0 | L22: ='3'!L22 -> 950 | M22: 0 | N22: ='3'!N22 -> 970 | O22: 0 | P22: ='3'!P22 -> 970 | Q22: 0 | R22: ='3'!R22 -> 970 | S22: 0 | T22: 3.082 | U22: 0 | V22: 2.53 | W22: 0 | X22: 2.99 | Y22: 0 | Z22: 3.45 | AA22: 0 | AB22: 3.68 | AC22: 0 | AD22: 3.91 | AE22: 0
A23: БСТ В15 (М200) П4 | J23: ='3'!J23 -> 240 | K23: 0 | L23: ='3'!L23 -> 970 | M23: 0 | N23: ='3'!N23 -> 930 | O23: 0 | P23: ='3'!P23 -> 930 | Q23: 0 | R23: ='3'!R23 -> 930 | S23: 0 | T23: 3.216 | U23: 0 | V23: 2.64 | W23: 0 | X23: 3.12 | Y23: 0 | Z23: 3.6 | AA23: 0 | AB23: 3.84 | AC23: 0 | AD23: 4.08 | AE23: 0
A24: БСТ В15 (М200) Ж4 | J24: ='3'!J24 -> 185 | K24: 0 | L24: ='3'!L24 -> 850 | M24: 0 | N24: ='3'!N24 -> 1100 | O24: 0 | P24: ='3'!P24 -> 1100 | Q24: 0 | R24: ='3'!R24 -> 1100 | S24: 0 | T24: 2.479 | U24: 0 | V24: 2.035 | W24: 0 | X24: 2.405 | Y24: 0 | Z24: 2.775 | AA24: 0 | AB24: 2.96 | AC24: 0 | AD24: 3.145 | AE24: 0
A25: БСТ В20 (М250) П3 | J25: ='3'!J25 -> 250 | K25: 0 | L25: ='3'!L25 -> 910 | M25: 0 | N25: ='3'!N25 -> 975 | O25: 0 | P25: ='3'!P25 -> 975 | Q25: 0 | R25: ='3'!R25 -> 975 | S25: 0 | T25: 3.35 | U25: 0 | V25: 2.75 | W25: 0 | X25: 3.25 | Y25: 0 | Z25: 3.75 | AA25: 0 | AB25: 4 | AC25: 0 | AD25: 4.25 | AE25: 0
A26: БСТ В20 (М250) П4 | J26: ='3'!J26 -> 270 | K26: 0 | L26: ='3'!L26 -> 930 | M26: 0 | N26: ='3'!N26 -> 935 | O26: 0 | P26: ='3'!P26 -> 935 | Q26: 0 | R26: ='3'!R26 -> 935 | S26: 0 | T26: 3.618 | U26: 0 | V26: 2.97 | W26: 0 | X26: 3.51 | Y26: 0 | Z26: 4.05 | AA26: 0 | AB26: 4.32 | AC26: 0 | AD26: 4.59 | AE26: 0
A27: БСТ В20 (М250) Ж4 | J27: ='3'!J27 -> 200 | K27: 0 | L27: ='3'!L27 -> 910 | M27: 0 | N27: ='3'!N27 -> 915 | O27: 0 | P27: ='3'!P27 -> 915 | Q27: 0 | R27: ='3'!R27 -> 915 | S27: 0 | T27: 2.68 | U27: 0 | V27: 2.2 | W27: 0 | X27: 2.6 | Y27: 0 | Z27: 3 | AA27: 0 | AB27: 3.2 | AC27: 0 | AD27: 3.4 | AE27: 0
A28: БСТ В22,5 (М300) П3 | J28: ='3'!J28 -> 280 | K28: 0 | L28: ='3'!L28 -> 895 | M28: 0 | N28: ='3'!N28 -> 980 | O28: 0 | P28: ='3'!P28 -> 980 | Q28: 0 | R28: ='3'!R28 -> 980 | S28: 0 | T28: 3.752 | U28: 0 | V28: 3.08 | W28: 0 | X28: 3.64 | Y28: 0 | Z28: 4.2 | AA28: 0 | AB28: 4.48 | AC28: 0 | AD28: 4.76 | AE28: 0
A29: БСТ В22,5 (М300) П4 | J29: ='3'!J29 -> 290 | K29: 0 | L29: ='3'!L29 -> 910 | M29: 0 | N29: ='3'!N29 -> 940 | O29: 0 | P29: ='3'!P29 -> 940 | Q29: 0 | R29: ='3'!R29 -> 940 | S29: 0 | T29: 3.886 | U29: 0 | V29: 3.19 | W29: 0 | X29: 3.77 | Y29: 0 | Z29: 4.35 | AA29: 0 | AB29: 4.64 | AC29: 0 | AD29: 4.93 | AE29: 0
A30: БСТ В25 (М350) П3 | J30: ='3'!J30 -> 305 | K30: 0 | L30: ='3'!L30 -> 890 | M30: 0 | N30: ='3'!N30 -> 995 | O30: 0 | P30: ='3'!P30 -> 995 | Q30: 0 | R30: ='3'!R30 -> 995 | S30: 0 | T30: 4.087 | U30: 0 | V30: 3.355 | W30: 0 | X30: 3.965 | Y30: 0 | Z30: 4.575 | AA30: 0 | AB30: 4.88 | AC30: 0 | AD30: 5.185 | AE30: 0
A31: БСТ В25 (М350) П4 | J31: ='3'!J31 -> 310 | K31: 0 | L31: ='3'!L31 -> 915 | M31: 0 | N31: ='3'!N31 -> 950 | O31: 0 | P31: ='3'!P31 -> 950 | Q31: 0 | R31: ='3'!R31 -> 950 | S31: 0 | T31: 4.154 | U31: 0 | V31: 3.41 | W31: 0 | X31: 4.03 | Y31: 0 | Z31: 4.65 | AA31: 0 | AB31: 4.96 | AC31: 0 | AD31: 5.27 | AE31: 0
A32: БСТ В30 (М400) П3 | J32: ='3'!J32 -> 350 | K32: 0 | L32: ='3'!L32 -> 855 | M32: 0 | N32: ='3'!N32 -> 1005 | O32: 0 | P32: ='3'!P32 -> 1005 | Q32: 0 | R32: ='3'!R32 -> 1005 | S32: 0 | T32: 4.69 | U32: 0 | V32: 3.85 | W32: 0 | X32: 4.55 | Y32: 0 | Z32: 5.25 | AA32: 0 | AB32: 5.6 | AC32: 0 | AD32: 5.95 | AE32: 0
A33: БСТ В30 (М400) П4 | J33: ='3'!J33 -> 360 | K33: 0 | L33: ='3'!L33 -> 880 | M33: 0 | N33: ='3'!N33 -> 960 | O33: 0 | P33: ='3'!P33 -> 960 | Q33: 0 | R33: ='3'!R33 -> 960 | S33: 0 | T33: 4.824 | U33: 0 | V33: 3.96 | W33: 0 | X33: 4.68 | Y33: 0 | Z33: 5.4 | AA33: 0 | AB33: 5.76 | AC33: 0 | AD33: 6.12 | AE33: 0
A34: БСТ В35 (М450) П3 | J34: ='3'!J34 -> 397 | K34: 0 | L34: ='3'!L34 -> 790 | M34: 0 | N34: ='3'!N34 -> 1020 | O34: 0 | P34: ='3'!P34 -> 1020 | Q34: 0 | R34: ='3'!R34 -> 1020 | S34: 0 | T34: 5.3198 | U34: 0 | V34: 4.367 | W34: 0 | X34: 5.161 | Y34: 0 | Z34: 5.955 | AA34: 0 | AB34: 6.352 | AC34: 0 | AD34: 6.749 | AE34: 0
A35: БСТ В35 (М450) П4 | J35: ='3'!J35 -> 413 | K35: 0 | L35: ='3'!L35 -> 810 | M35: 0 | N35: ='3'!N35 -> 970 | O35: 0 | P35: ='3'!P35 -> 970 | Q35: 0 | R35: ='3'!R35 -> 970 | S35: 0 | T35: 5.5342 | U35: 0 | V35: 4.543 | W35: 0 | X35: 5.369 | Y35: 0 | Z35: 6.195 | AA35: 0 | AB35: 6.608 | AC35: 0 | AD35: 7.021 | AE35: 0
A36: БСТ В40 (М500) П3 | J36: ='3'!J36 -> 440 | K36: 0 | L36: ='3'!L36 -> 735 | M36: 0 | N36: ='3'!N36 -> 1040 | O36: 0 | P36: ='3'!P36 -> 1040 | Q36: 0 | R36: ='3'!R36 -> 1040 | S36: 0 | T36: 5.896 | U36: 0 | V36: 4.84 | W36: 0 | X36: 5.72 | Y36: 0 | Z36: 6.6 | AA36: 0 | AB36: 7.04 | AC36: 0 | AD36: 7.48 | AE36: 0
A37: БСТ В40 (М500) П4 | J37: ='3'!J37 -> 460 | K37: 0 | L37: ='3'!L37 -> 755 | M37: 0 | N37: ='3'!N37 -> 985 | O37: 0 | P37: ='3'!P37 -> 985 | Q37: 0 | R37: ='3'!R37 -> 985 | S37: 0 | T37: 6.164 | U37: 0 | V37: 5.06 | W37: 0 | X37: 5.98 | Y37: 0 | Z37: 6.9 | AA37: 0 | AB37: 7.36 | AC37: 0 | AD37: 7.82 | AE37: 0
A38: БСТ В45 (М550) П3 | J38: ='3'!J38 -> 480 | K38: 0 | L38: ='3'!L38 -> 765 | M38: 0 | N38: ='3'!N38 -> 1060 | O38: 0 | P38: ='3'!P38 -> 1060 | Q38: 0 | R38: ='3'!R38 -> 1060 | S38: 0 | T38: 6.432 | U38: 0 | V38: 5.28 | W38: 0 | X38: 6.24 | Y38: 0 | Z38: 7.2 | AA38: 0 | AB38: 7.68 | AC38: 0 | AD38: 8.16 | AE38: 0
A39: БСТ В45 (М550) П4 | J39: ='3'!J39 -> 500 | K39: 0 | L39: ='3'!L39 -> 795 | M39: 0 | N39: ='3'!N39 -> 1010 | O39: 0 | P39: ='3'!P39 -> 1010 | Q39: 0 | R39: ='3'!R39 -> 1010 | S39: 0 | T39: 6.7 | U39: 0 | V39: 5.5 | W39: 0 | X39: 6.5 | Y39: 0 | Z39: 7.5 | AA39: 0 | AB39: 8 | AC39: 0 | AD39: 8.5 | AE39: 0
A40: Раствор М 50/Пк 1-4 | J40: ='3'!J40 -> 185 | K40: 0 | L40: ='3'!L40 -> 1675 | M40: 0 | O40: 0 | Q40: 0 | S40: 0 | T40: 2.479 | U40: 0 | V40: 2.035 | W40: 0 | X40: 2.405 | Y40: 0 | Z40: 2.775 | AA40: 0 | AB40: 2.96 | AC40: 0 | AD40: 3.145 | AE40: 0
A41: Раствор М100/Пк 1-4 | J41: ='3'!J41 -> 240 | K41: 0 | L41: ='3'!L41 -> 1650 | M41: 0 | O41: 0 | Q41: 0 | S41: 0 | T41: 3.216 | U41: 0 | V41: 2.64 | W41: 0 | X41: 3.12 | Y41: 0 | Z41: 3.6 | AA41: 0 | AB41: 3.84 | AC41: 0 | AD41: 4.08 | AE41: 0
A42: Раствор М150/Пк 1-4 | J42: ='3'!J42 -> 290 | K42: 0 | L42: ='3'!L42 -> 1620 | M42: 0 | O42: 0 | Q42: 0 | S42: 0 | T42: 3.886 | U42: 0 | V42: 3.19 | W42: 0 | X42: 3.77 | Y42: 0 | Z42: 4.35 | AA42: 0 | AB42: 4.64 | AC42: 0 | AD42: 4.93 | AE42: 0
A43: Раствор М200/Пк 1-4 | J43: ='3'!J43 -> 320 | K43: 0 | L43: ='3'!L43 -> 1590 | M43: 0 | O43: 0 | Q43: 0 | S43: 0 | T43: 4.288 | U43: 0 | V43: 3.52 | W43: 0 | X43: 4.16 | Y43: 0 | Z43: 4.8 | AA43: 0 | AB43: 5.12 | AC43: 0 | AD43: 5.44 | AE43: 0
A44: ПБСТ В12,5 (М150) П4 | J44: ='3'!J44 -> 290 | K44: 0 | L44: ='3'!L44 -> 1620 | M44: 0 | O44: 0 | Q44: 0 | S44: 0 | T44: 3.886 | U44: 0 | V44: 3.19 | W44: 0 | X44: 3.77 | Y44: 0 | Z44: 4.35 | AA44: 0 | AB44: 4.64 | AC44: 0 | AD44: 4.93 | AE44: 0
A45: ПБСТ В15 (М200) П4 | J45: ='3'!J45 -> 320 | K45: 0 | L45: ='3'!L45 -> 1590 | M45: 0 | O45: 0 | Q45: 0 | S45: 0 | T45: 4.288 | U45: 0 | V45: 3.52 | W45: 0 | X45: 4.16 | Y45: 0 | Z45: 4.8 | AA45: 0 | AB45: 5.12 | AC45: 0 | AD45: 5.44 | AE45: 0
A46: ПБСТ В20 (М250) П4 | J46: ='3'!J46 -> 380 | K46: 0 | L46: ='3'!L46 -> 1560 | M46: 0 | O46: 0 | Q46: 0 | S46: 0 | T46: 5.092 | U46: 0 | V46: 4.18 | W46: 0 | X46: 4.94 | Y46: 0 | Z46: 5.7 | AA46: 0 | AB46: 6.08 | AC46: 0 | AD46: 6.46 | AE46: 0
A47: ПБСТ В22,5 (М300) П4 | J47: ='3'!J47 -> 415 | K47: 0 | L47: ='3'!L47 -> 1550 | M47: 0 | O47: 0 | Q47: 0 | S47: 0 | T47: 5.561 | U47: 0 | V47: 4.565 | W47: 0 | X47: 5.395 | Y47: 0 | Z47: 6.225 | AA47: 0 | AB47: 6.64 | AC47: 0 | AD47: 7.055 | AE47: 0
A48: ПБСТ В25 (М350) П4 | J48: ='3'!J48 -> 440 | K48: 0 | L48: ='3'!L48 -> 1540 | M48: 0 | O48: 0 | Q48: 0 | S48: 0 | T48: 5.896 | U48: 0 | V48: 4.84 | W48: 0 | X48: 5.72 | Y48: 0 | Z48: 6.6 | AA48: 0 | AB48: 7.04 | AC48: 0 | AD48: 7.48 | AE48: 0
A49: Пусковая смесь | J49: ='3'!J49 -> 400 | K49: 0 | L49: ='3'!L49 -> 500 | M49: 0 | O49: 0 | Q49: 0 | S49: 0 | U49: 0
A50: Итого: | B50: =SUM(B15:B49) -> 0 | C50: =SUM(C15:C49) -> 0 | D50: 0 | E50: 0 | F50: 0 | G50: 0 | H50: 0 | I50: 0 | K50: =SUM(K15:K49) -> 0 | M50: =SUM(M15:M49) -> 0 | O50: =SUM(O15:O49) -> 0 | Q50: =SUM(Q15:Q49) -> 0 | S50: =SUM(S15:S49) -> 0 | U50: =SUM(U15:U49) -> 0 | W50: =SUM(W15:W49) -> 0 | Y50: =SUM(Y15:Y49) -> 0 | AA50: =SUM(AA15:AA49) -> 0 | AC50: =SUM(AC15:AC49) -> 0 | AE50: =SUM(AE15:AE49) -> 0
B51: =B50+C50+D50 -> 0 | E51: =E50+F50+I50 -> 0 | V51: =W50+Y50+AA50+AC50+AE50 -> 0

Sheet ПРИХОД-РАСХОД-ОСТАТОК
B1: Инертные материалы | C1: Приход | D1: Расход | E1: Продажа | F1: Остаток | I1: Объем отгруженного
F2: начало месяца | G2: фактический
B3: Цемент 400 | C3: =SUM('1:4'!K2) -> 0 | D3: =SUM('1:4'!M2) -> 0 | E3: =SUM('1:4'!P2) -> 0 | F3: ='1'!H2 -> 0 | G3: =F3+C3-D3-E3 -> 0 | I3: =SUM('1:4'!B51:I51) -> 0
B4: Цемент 500 | C4: =SUM('1:4'!K3) -> 0 | D4: =SUM('1:4'!M3) -> 0 | E4: =SUM('1:4'!P3) -> 0 | F4: ='1'!H3 -> 0 | G4: =F4+C4-D4-E4 -> 0
B5: Цемент | C5: =SUM('1:4'!K4) -> 0 | D5: =SUM('1:4'!M4) -> 0 | E5: =SUM('1:4'!P4) -> 0 | F5: ='1'!H4 -> 83.78 | G5: =F5+C5-D5-E5 -> 83.78
B6: Песок | C6: =SUM('1:4'!K5) -> 0 | D6: =SUM('1:4'!M5) -> 0 | E6: =SUM('1:4'!P5) -> 0 | F6: ='1'!H5 -> 1213.1738 | G6: 1213.1738
B7: Гранит | C7: =SUM('1:4'!K6) -> 0 | D7: =SUM('1:4'!M6) -> 0 | E7: =SUM('1:4'!P6) -> 0 | F7: ='1'!H6 -> 506.4745 | G7: 506.4745
B8: Гравий | C8: =SUM('1:4'!K7) -> 0 | D8: =SUM('1:4'!M7) -> 0 | E8: =SUM('1:4'!P7) -> 0 | F8: ='1'!H7 -> 912.149 | G8: 912.149
B9: ПГП | C9: =SUM('1:4'!K8) -> 0 | D9: =SUM('1:4'!M8) -> 0 | E9: =SUM('1:4'!P8) -> 0 | F9: ='1'!H8 -> 0 | G9: 0
B10: СП-3 | C10: =SUM('1:4'!K9) -> 0 | D10: =SUM('1:4'!M9) -> 0 | E10: =SUM('1:4'!P9) -> 0 | F10: ='1'!H9 -> -13.593204 | G10: -13.593204
B11: Криопласт ЭКСТРА | C11: =SUM('1:4'!K10) -> 0 | D11: =SUM('1:4'!M10) -> 0 | E11: =SUM('1:4'!P10) -> 0 | F11: ='1'!H10 -> -1.217955 | G11: -1.217955
